[Event "2026 European Womens Championship"]
[Site "Batumi, GE"]
[Date "2026.05.27"]
[Round "3"]
[White "Brunello, Marina"]
[Black "Lomaia, Diana"]
[Result "1-0"]
[Board "37"]
[TimeControl "5400+30"]
[WhiteFideId "822590"]
[BlackFideId "13612476"]
[WhiteElo "2346"]
[BlackElo "2110"]
[WhiteTitle "IM"]
[BlackTitle "WFM"]
[WhiteClock "0:15:19"]
[BlackClock "0:01:52"]
[Variant "Standard"]

1. e4 {[%clk 1:30:57]}  e5 {[%clk 1:30:54]} 2. Nf3 {[%clk 1:31:22]}  Nc6 {[%clk 1:31:19]} 3. Bc4 {[%clk 1:31:46]}  Nf6 {[%clk 1:31:33]}
4. d3 {[%clk 1:32:11]}  Be7 {[%clk 1:31:34]} 5. O-O {[%clk 1:32:31]}  O-O {[%clk 1:30:40]} 6. Re1 {[%clk 1:32:57]}  d6 {[%clk 1:30:15]}
7. a4 {[%clk 1:33:22]}  Bg4 {[%clk 1:26:57]} 8. h3 {[%clk 1:30:25]}  Bh5 {[%clk 1:21:34]} 9. c3 {[%clk 1:25:28]}  d5 {[%clk 1:19:24]}
10. exd5 {[%clk 1:25:24]}  Nxd5 {[%clk 1:19:38]} 11. a5 {[%clk 1:25:45]}  Qd6 {[%clk 1:09:22]} 12. Nbd2 {[%clk 1:20:31]}  Nf4 {[%clk 1:08:58]}
13. Ne4 {[%clk 1:19:13]}  Qg6 {[%clk 1:07:43]} 14. Ng3 {[%clk 1:10:59]}  Bd6 {[%clk 0:59:20]} 15. Bxf4 {[%clk 1:06:15]}  Bxf3 {[%clk 0:55:18]}
16. Qxf3 {[%clk 1:04:57]}  exf4 {[%clk 0:55:40]} 17. Nf1 {[%clk 1:00:50]}  Ne5 {[%clk 0:53:41]} 18. Qe4 {[%clk 0:58:01]}  c6 {[%clk 0:42:24]}
19. Nd2 {[%clk 0:54:26]}  Rae8 {[%clk 0:37:49]} 20. Qxg6 {[%clk 0:50:57]}  hxg6 {[%clk 0:37:46]} 21. d4 {[%clk 0:50:34]}  Nxc4 {[%clk 0:35:46]}
22. Nxc4 {[%clk 0:50:59]}  Bc7 {[%clk 0:36:11]} 23. Kf1 {[%clk 0:44:03]}  f6 {[%clk 0:36:06]} 24. b4 {[%clk 0:42:52]}  Kf7 {[%clk 0:34:43]}
25. a6 {[%clk 0:34:26]}  b6 {[%clk 0:33:04]} 26. b5 {[%clk 0:33:12]}  cxb5 {[%clk 0:31:19]} 27. Na3 {[%clk 0:32:23]}  b4 {[%clk 0:31:10]}
28. Nb5 {[%clk 0:31:04]}  Bb8 {[%clk 0:31:02]} 29. c4 {[%clk 0:24:00]}  Rxe1+ {[%clk 0:25:18]} 30. Kxe1 {[%clk 0:24:01]}  Rc8 {[%clk 0:25:31]}
31. Rc1 {[%clk 0:24:14]}  b3 {[%clk 0:25:32]} 32. Na3 {[%clk 0:23:24]}  Bd6 {[%clk 0:22:55]} 33. Nb1 {[%clk 0:23:42]}  Bb4+ {[%clk 0:20:58]}
34. Ke2 {[%clk 0:24:01]}  Ke6 {[%clk 0:17:30]} 35. Kd3 {[%clk 0:24:03]}  Kd6 {[%clk 0:17:16]} 36. Nc3 {[%clk 0:21:50]}  Bxc3 {[%clk 0:16:46]}
37. Rxc3 {[%clk 0:22:14]}  Re8 {[%clk 0:14:20]} 38. Rxb3 {[%clk 0:22:39]}  Kc6 {[%clk 0:07:48]} 39. Rb1 {[%clk 0:18:06]}  g5 {[%clk 0:06:49]}
40. Kd2 {[%clk 0:13:28]}  Re4 {[%clk 0:06:26]} 41. Kd3 {[%clk 0:13:54]}  Re8 {[%clk 0:06:15]} 42. Rc1 {[%clk 0:12:14]}  Re7 {[%clk 0:04:22]}
43. c5 {[%clk 0:07:38]}  b5 {[%clk 0:22:03]} 44. Rd1 {[%clk 0:30:31]}  Kd5 {[%clk 0:19:53]} 45. Rb1 {[%clk 0:30:56]}  Kc6 {[%clk 0:19:55]}
46. Kd2 {[%clk 0:30:21]}  Re4 {[%clk 0:20:06]} 47. Kd3 {[%clk 0:30:47]}  Re7 {[%clk 0:19:46]} 48. Rb2 {[%clk 0:30:05]}  Re1 {[%clk 0:17:55]}
49. Re2 {[%clk 0:30:31]}  Rd1+ {[%clk 0:18:08]} 50. Kc3 {[%clk 0:29:58]}  Kd7 {[%clk 0:14:53]} 51. Re4 {[%clk 0:27:11]}  Ra1 {[%clk 0:10:34]}
52. d5 {[%clk 0:27:12]}  Rxa6 {[%clk 0:10:27]} 53. Kb2 {[%clk 0:22:17]}  Kd8 {[%clk 0:04:13]} 54. f3 {[%clk 0:22:06]}  Ra5 {[%clk 0:01:43]}
55. Kb3 {[%clk 0:19:20]}  a6 {[%clk 0:01:51]} 56. c6 {[%clk 0:17:03]}  Ra1 {[%clk 0:01:45]} 57. Kb4 {[%clk 0:16:53]}  Rc1 {[%clk 0:01:41]}
58. Ka5 {[%clk 0:16:38]}  f5 {[%clk 0:00:36]} 59. Rd4 {[%clk 0:14:29]}  Kc7 {[%clk 0:00:38]} 60. Kxa6 {[%clk 0:14:31]}  Rc4 {[%clk 0:00:37]}
61. Rd2 {[%clk 0:14:27]}  b4 {[%clk 0:00:33]} 62. Kb5 {[%clk 0:14:14]}  Rc1 {[%clk 0:00:46]} 63. d6+ {[%clk 0:14:34]}  Kd8 {[%clk 0:01:07]}
64. Ra2 {[%clk 0:14:09]}  Ke8 {[%clk 0:01:11]} 65. d7+ {[%clk 0:14:28]}  Ke7 {[%clk 0:01:27]} 66. Re2+ {[%clk 0:14:53]}  Kd8 {[%clk 0:01:52]}
67. Re8+ {[%clk 0:15:19]} 1-0

[Event "2026 European Womens Championship"]
[Site "Batumi, GE"]
[Date "2026.05.27"]
[Round "3"]
[White "Khukhashvili, Sopiko"]
[Black "Mkrtchyan, Anahit H."]
[Result "1-0"]
[Board "38"]
[TimeControl "5400+30"]
[WhiteFideId "13602055"]
[BlackFideId "13314858"]
[WhiteElo "2329"]
[BlackElo "2107"]
[WhiteTitle "IM"]
[WhiteClock "1:04:16"]
[BlackClock "0:00:33"]
[Variant "Standard"]

1. e4 {[%clk 1:30:56]}  c5 {[%clk 1:30:49]} 2. Nf3 {[%clk 1:31:11]}  e6 {[%clk 1:31:12]} 3. d4 {[%clk 1:31:29]}  cxd4 {[%clk 1:31:21]}
4. Nxd4 {[%clk 1:31:56]}  Nf6 {[%clk 1:31:39]} 5. Nc3 {[%clk 1:30:08]}  Nc6 {[%clk 1:31:59]} 6. Ndb5 {[%clk 1:30:19]}  d6 {[%clk 1:23:13]}
7. Bf4 {[%clk 1:30:23]}  e5 {[%clk 1:23:14]} 8. Bg5 {[%clk 1:30:50]}  a6 {[%clk 1:22:15]} 9. Na3 {[%clk 1:31:17]}  b5 {[%clk 1:16:26]}
10. Nd5 {[%clk 1:31:30]}  Be6 {[%clk 1:10:51]} 11. Bxf6 {[%clk 1:29:13]}  gxf6 {[%clk 1:11:14]} 12. c3 {[%clk 1:29:23]}  h5 {[%clk 1:06:56]}
13. h4 {[%clk 1:28:11]}  Rc8 {[%clk 0:46:42]} 14. Nc2 {[%clk 1:23:31]}  f5 {[%clk 0:36:35]} 15. exf5 {[%clk 1:20:23]}  Bxf5 {[%clk 0:35:44]}
16. Nce3 {[%clk 1:15:29]}  Bg6 {[%clk 0:34:05]} 17. a4 {[%clk 1:14:10]}  Bh6 {[%clk 0:24:03]} 18. axb5 {[%clk 1:12:51]}  axb5 {[%clk 0:24:03]}
19. Bxb5 {[%clk 1:11:02]}  Kf8 {[%clk 0:21:41]} 20. Nc4 {[%clk 1:08:33]}  Be4 {[%clk 0:14:11]} 21. Ncb6 {[%clk 1:05:18]}  Bxg2 {[%clk 0:07:15]}
22. Rg1 {[%clk 1:04:37]}  Qxh4 {[%clk 0:03:34]} 23. Rxg2 {[%clk 1:04:26]}  Qh1+ {[%clk 0:02:15]} 24. Bf1 {[%clk 1:04:52]}  h4 {[%clk 0:00:47]}
25. Qf3 {[%clk 1:03:59]}  Rd8 {[%clk 0:00:33]} 26. Rg8+ {[%clk 1:04:16]} 1-0

[Event "2026 European Womens Championship"]
[Site "Batumi, GE"]
[Date "2026.05.27"]
[Round "3"]
[White "Skvortsova, Alena"]
[Black "Nomin-Erdene, Davaademberel"]
[Result "1-0"]
[Board "39"]
[TimeControl "5400+30"]
[WhiteFideId "24166251"]
[BlackFideId "4900782"]
[WhiteElo "2135"]
[BlackElo "2328"]
[WhiteTitle "WFM"]
[BlackTitle "IM"]
[WhiteClock "0:26:56"]
[BlackClock "0:02:43"]
[Variant "Standard"]

1. e4 {[%clk 1:28:50]}  e5 {[%clk 1:30:52]} 2. Nf3 {[%clk 1:29:04]}  Nc6 {[%clk 1:31:14]} 3. d4 {[%clk 1:29:24]}  exd4 {[%clk 1:31:37]}
4. Nxd4 {[%clk 1:29:50]}  Nf6 {[%clk 1:31:59]} 5. Nxc6 {[%clk 1:29:49]}  bxc6 {[%clk 1:32:24]} 6. e5 {[%clk 1:30:08]}  Qe7 {[%clk 1:32:46]}
7. Qe2 {[%clk 1:30:32]}  Nd5 {[%clk 1:33:11]} 8. g3 {[%clk 1:30:43]}  g6 {[%clk 1:33:01]} 9. Bg2 {[%clk 1:31:01]}  Bg7 {[%clk 1:32:56]}
10. O-O {[%clk 1:31:03]}  O-O {[%clk 1:32:39]} 11. Re1 {[%clk 1:31:13]}  Re8 {[%clk 1:27:37]} 12. c4 {[%clk 1:31:01]}  Ba6 {[%clk 1:27:44]}
13. Qc2 {[%clk 1:30:15]}  Nb4 {[%clk 1:27:13]} 14. Qb3 {[%clk 1:14:41]}  Bc8 {[%clk 1:06:09]} 15. Nd2 {[%clk 1:13:21]}  a5 {[%clk 0:54:08]}
16. Nf3 {[%clk 1:04:01]}  a4 {[%clk 0:42:11]} 17. Qd1 {[%clk 1:03:45]}  a3 {[%clk 0:34:07]} 18. bxa3 {[%clk 1:01:38]}  Na6 {[%clk 0:34:32]}
19. Qa4 {[%clk 0:40:09]}  Bb7 {[%clk 0:29:59]} 20. Rb1 {[%clk 0:36:49]}  Nc5 {[%clk 0:29:17]} 21. Qc2 {[%clk 0:35:51]}  Bc8 {[%clk 0:23:00]}
22. h4 {[%clk 0:32:42]}  Ne6 {[%clk 0:20:09]} 23. h5 {[%clk 0:32:30]}  Qf8 {[%clk 0:18:09]} 24. Rb3 {[%clk 0:28:35]}  Ba6 {[%clk 0:11:25]}
25. Rbe3 {[%clk 0:23:22]}  Bb7 {[%clk 0:05:45]} 26. hxg6 {[%clk 0:20:05]}  hxg6 {[%clk 0:06:06]} 27. Nh2 {[%clk 0:20:09]}  f5 {[%clk 0:00:48]}
28. exf6 {[%clk 0:19:05]}  Qxf6 {[%clk 0:01:17]} 29. Ng4 {[%clk 0:18:29]}  Qf5 {[%clk 0:01:42]} 30. Qd1 {[%clk 0:17:40]}  Red8 {[%clk 0:00:36]}
31. Bb2 {[%clk 0:12:58]}  Kh7 {[%clk 0:00:32]} 32. Re5 {[%clk 0:12:16]}  Qf7 {[%clk 0:00:33]} 33. Qb1 {[%clk 0:08:43]}  Kg8 {[%clk 0:00:32]}
34. R5e3 {[%clk 0:07:03]}  Qf5 {[%clk 0:00:37]} 35. Bxg7 {[%clk 0:06:43]}  Kxg7 {[%clk 0:01:06]} 36. Qb2+ {[%clk 0:06:22]}  Kh7 {[%clk 0:00:46]}
37. Nf6+ {[%clk 0:06:13]}  Kh6 {[%clk 0:00:53]} 38. Rf3 {[%clk 0:05:38]}  Qg5 {[%clk 0:01:06]} 39. Re4 {[%clk 0:04:18]}  c5 {[%clk 0:00:32]}
40. Rh4+ {[%clk 0:01:31]}  Qxh4 {[%clk 0:00:51]} 41. gxh4 {[%clk 0:01:55]}  Bxf3 {[%clk 0:00:47]} 42. Bxf3 {[%clk 0:02:03]}  Rab8 {[%clk 0:22:54]}
43. Qe5 {[%clk 0:31:23]}  Rb6 {[%clk 0:11:27]} 44. Be4 {[%clk 0:27:27]}  Rd6 {[%clk 0:01:54]} 45. Ng4+ {[%clk 0:26:19]}  Kh7 {[%clk 0:02:20]}
46. Qh5+ {[%clk 0:26:30]}  Kg8 {[%clk 0:02:35]} 47. Qxg6+ {[%clk 0:26:42]}  Ng7 {[%clk 0:02:43]} 48. Nh6+ {[%clk 0:26:56]} 1-0

[Event "2026 European Womens Championship"]
[Site "Batumi, GE"]
[Date "2026.05.27"]
[Round "3"]
[White "Liavonava, Yuliya"]
[Black "Mammadova, Gulnar"]
[Result "1/2-1/2"]
[Board "40"]
[TimeControl "5400+30"]
[WhiteFideId "13524178"]
[BlackFideId "13403508"]
[WhiteElo "2118"]
[BlackElo "2325"]
[WhiteTitle "WFM"]
[BlackTitle "IM"]
[WhiteClock "0:14:25"]
[BlackClock "0:21:59"]
[Variant "Standard"]

1. e4 {[%clk 1:30:58]}  g6 {[%clk 1:30:45]} 2. d4 {[%clk 1:31:09]}  Bg7 {[%clk 1:31:09]} 3. Nc3 {[%clk 1:31:08]}  a6 {[%clk 1:31:31]}
4. a4 {[%clk 1:29:04]}  d6 {[%clk 1:31:44]} 5. Be3 {[%clk 1:27:54]}  Nc6 {[%clk 1:32:00]} 6. Nf3 {[%clk 1:20:58]}  Bg4 {[%clk 1:29:16]}
7. Be2 {[%clk 1:20:49]}  e5 {[%clk 1:21:25]} 8. dxe5 {[%clk 1:17:48]}  dxe5 {[%clk 1:22:22]} 9. Qxd8+ {[%clk 1:15:55]}  Rxd8 {[%clk 1:20:25]}
10. Nd5 {[%clk 1:15:54]}  Rd7 {[%clk 1:19:54]} 11. h3 {[%clk 1:07:34]}  Be6 {[%clk 1:18:15]} 12. O-O-O {[%clk 1:06:00]}  Nge7 {[%clk 1:13:36]}
13. Nxe7 {[%clk 1:01:26]}  Rxe7 {[%clk 1:11:41]} 14. Ng5 {[%clk 0:53:52]}  Nd4 {[%clk 1:07:53]} 15. Bd3 {[%clk 0:54:17]}  Bd7 {[%clk 1:05:40]}
16. b3 {[%clk 0:44:53]}  h6 {[%clk 1:03:20]} 17. Nf3 {[%clk 0:45:18]}  Ne6 {[%clk 1:01:50]} 18. Rhe1 {[%clk 0:37:03]}  b5 {[%clk 0:56:11]}
19. axb5 {[%clk 0:33:28]}  axb5 {[%clk 0:56:35]} 20. b4 {[%clk 0:33:48]}  O-O {[%clk 0:55:46]} 21. Nd2 {[%clk 0:33:43]}  Ra8 {[%clk 0:48:50]}
22. Kb2 {[%clk 0:33:23]}  Ree8 {[%clk 0:41:26]} 23. c3 {[%clk 0:30:04]}  Nf4 {[%clk 0:39:37]} 24. Bf1 {[%clk 0:28:47]}  f5 {[%clk 0:36:34]}
25. f3 {[%clk 0:28:43]}  fxe4 {[%clk 0:33:43]} 26. Nxe4 {[%clk 0:27:52]}  Be6 {[%clk 0:33:52]} 27. Ra1 {[%clk 0:28:07]}  Rxa1 {[%clk 0:29:37]}
28. Rxa1 {[%clk 0:28:32]}  c6 {[%clk 0:29:57]} 29. Kc2 {[%clk 0:23:51]}  Bd5 {[%clk 0:27:36]} 30. Ra7 {[%clk 0:22:11]}  Rf8 {[%clk 0:26:31]}
31. Nd2 {[%clk 0:18:32]}  g5 {[%clk 0:24:53]} 32. Bxf4 {[%clk 0:16:24]}  exf4 {[%clk 0:25:01]} 33. Bd3 {[%clk 0:16:26]}  Rc8 {[%clk 0:23:02]}
34. Bf5 {[%clk 0:14:25]}  Re8 {[%clk 0:21:59]} 1/2-1/2

[Event "2026 European Womens Championship"]
[Site "Batumi, GE"]
[Date "2026.05.27"]
[Round "3"]
[White "Iglesias, Yosha"]
[Black "Shuqja, Klean"]
[Result "1-0"]
[Board "41"]
[TimeControl "5400+30"]
[WhiteFideId "637823"]
[BlackFideId "4701585"]
[WhiteElo "2325"]
[BlackElo "2092"]
[WhiteTitle "FM"]
[BlackTitle "WFM"]
[WhiteClock "0:13:24"]
[BlackClock "0:00:32"]
[Variant "Standard"]

1. d4 {[%clk 1:30:58]}  Nf6 {[%clk 1:25:12]} 2. Bf4 {[%clk 1:31:09]}  e6 {[%clk 1:24:40]} 3. e3 {[%clk 1:31:25]}  d6 {[%clk 1:23:47]}
4. h3 {[%clk 1:30:16]}  Nbd7 {[%clk 1:21:46]} 5. Nf3 {[%clk 1:30:17]}  h6 {[%clk 1:21:29]} 6. a4 {[%clk 1:26:52]}  a6 {[%clk 1:17:18]}
7. a5 {[%clk 1:26:54]}  g5 {[%clk 1:03:43]} 8. Bh2 {[%clk 1:27:07]}  Bg7 {[%clk 1:03:09]} 9. c4 {[%clk 1:22:55]}  Qe7 {[%clk 0:55:59]}
10. Nc3 {[%clk 1:22:23]}  e5 {[%clk 0:41:39]} 11. Be2 {[%clk 1:21:38]}  c5 {[%clk 0:35:34]} 12. d5 {[%clk 1:16:31]}  Nf8 {[%clk 0:22:24]}
13. Qb1 {[%clk 1:07:58]}  Qc7 {[%clk 0:17:37]} 14. Nd2 {[%clk 0:59:32]}  Ng6 {[%clk 0:15:37]} 15. Bd3 {[%clk 0:56:49]}  Ne7 {[%clk 0:15:35]}
16. f4 {[%clk 0:55:12]}  exf4 {[%clk 0:07:39]} 17. exf4 {[%clk 0:55:30]}  gxf4 {[%clk 0:05:47]} 18. O-O {[%clk 0:51:19]}  Nd7 {[%clk 0:03:55]}
19. Bxf4 {[%clk 0:42:07]}  Ne5 {[%clk 0:03:21]} 20. Bxe5 {[%clk 0:37:26]}  Bxe5 {[%clk 0:03:35]} 21. Nf3 {[%clk 0:37:51]}  Bg7 {[%clk 0:02:48]}
22. Qe1 {[%clk 0:37:26]}  O-O {[%clk 0:02:37]} 23. Nh4 {[%clk 0:34:19]}  Bd7 {[%clk 0:01:10]} 24. Qe4 {[%clk 0:28:21]}  f5 {[%clk 0:01:19]}
25. Qf3 {[%clk 0:24:15]}  Rae8 {[%clk 0:01:21]} 26. Qh5 {[%clk 0:24:23]}  Qc8 {[%clk 0:00:33]} 27. Rf3 {[%clk 0:23:40]}  Rf6 {[%clk 0:00:40]}
28. Raf1 {[%clk 0:18:28]}  Ref8 {[%clk 0:00:53]} 29. Re3 {[%clk 0:14:11]}  R8f7 {[%clk 0:00:35]} 30. Rfe1 {[%clk 0:12:26]}  Qf8 {[%clk 0:00:35]}
31. Qe2 {[%clk 0:09:55]}  Ng6 {[%clk 0:00:39]} 32. Nxg6 {[%clk 0:08:43]}  Rxg6 {[%clk 0:01:08]} 33. Kh1 {[%clk 0:08:15]}  Be5 {[%clk 0:00:36]}
34. Rxe5 {[%clk 0:08:27]}  dxe5 {[%clk 0:00:53]} 35. Qxe5 {[%clk 0:08:52]}  Qd6 {[%clk 0:01:03]} 36. Qxd6 {[%clk 0:06:36]}  Rxd6 {[%clk 0:01:32]}
37. Rf1 {[%clk 0:07:01]}  Rdf6 {[%clk 0:00:38]} 38. Be2 {[%clk 0:05:50]}  Re7 {[%clk 0:00:35]} 39. Bf3 {[%clk 0:06:09]}  Rd6 {[%clk 0:00:32]}
40. Rb1 {[%clk 0:05:17]}  Re3 {[%clk 0:00:33]} 41. Kg1 {[%clk 0:04:01]}  b6 {[%clk 0:24:50]} 42. Kf2 {[%clk 0:34:10]}  Re8 {[%clk 0:19:29]}
43. b4 {[%clk 0:18:09]}  cxb4 {[%clk 0:16:05]} 44. axb6 {[%clk 0:18:15]}  bxc3 {[%clk 0:01:28]} 45. c5 {[%clk 0:18:39]}  c2 {[%clk 0:01:41]}
46. Rc1 {[%clk 0:16:01]}  Rxb6 {[%clk 0:02:06]} 47. cxb6 {[%clk 0:15:47]}  Rb8 {[%clk 0:02:30]} 48. Rxc2 {[%clk 0:16:29]}  Rxb6 {[%clk 0:02:57]}
49. Rc7 {[%clk 0:16:50]}  Rd6 {[%clk 0:02:41]} 50. Ke3 {[%clk 0:16:33]}  Kf7 {[%clk 0:02:33]} 51. Kd4 {[%clk 0:16:33]}  Ke7 {[%clk 0:01:26]}
52. Kc5 {[%clk 0:14:20]}  Rg6 {[%clk 0:01:03]} 53. Ra7 {[%clk 0:14:36]}  h5 {[%clk 0:00:32]} 54. h4 {[%clk 0:13:34]}  f4 {[%clk 0:00:33]}
55. Kd4 {[%clk 0:12:01]}  Rb6 {[%clk 0:00:32]} 56. Ke5 {[%clk 0:13:06]}  Rf6 {[%clk 0:00:32]} 57. Rxd7+ {[%clk 0:13:24]} 1-0

[Event "2026 European Womens Championship"]
[Site "Batumi, GE"]
[Date "2026.05.27"]
[Round "3"]
[White "Ivanytska, Liudmyla"]
[Black "Gvetadze, Sofio"]
[Result "1-0"]
[Board "42"]
[TimeControl "5400+30"]
[WhiteFideId "14176211"]
[BlackFideId "13601440"]
[WhiteElo "2112"]
[BlackElo "2311"]
[BlackTitle "IM"]
[WhiteClock "0:15:59"]
[BlackClock "0:05:06"]
[Variant "Standard"]

1. e4 {[%clk 1:30:59]}  c5 {[%clk 1:30:52]} 2. Nf3 {[%clk 1:31:25]}  e6 {[%clk 1:31:10]} 3. d4 {[%clk 1:31:52]}  cxd4 {[%clk 1:31:34]}
4. Nxd4 {[%clk 1:32:20]}  Nf6 {[%clk 1:31:47]} 5. Nc3 {[%clk 1:32:39]}  d6 {[%clk 1:31:58]} 6. g4 {[%clk 1:32:45]}  h6 {[%clk 1:32:11]}
7. Rg1 {[%clk 1:33:00]}  a6 {[%clk 1:31:36]} 8. h4 {[%clk 1:28:59]}  Qa5 {[%clk 1:28:22]} 9. Nb3 {[%clk 1:20:41]}  Qc7 {[%clk 1:27:49]}
10. Be3 {[%clk 1:13:09]}  Nc6 {[%clk 1:27:06]} 11. g5 {[%clk 1:12:29]}  Nd7 {[%clk 1:26:01]} 12. f4 {[%clk 1:11:26]}  hxg5 {[%clk 1:20:56]}
13. hxg5 {[%clk 1:10:44]}  g6 {[%clk 1:19:50]} 14. Qd2 {[%clk 1:08:15]}  b6 {[%clk 1:17:59]} 15. O-O-O {[%clk 0:56:12]}  Bb7 {[%clk 1:17:37]}
16. Nd4 {[%clk 0:50:21]}  Na5 {[%clk 1:15:22]} 17. f5 {[%clk 0:37:45]}  exf5 {[%clk 0:41:39]} 18. exf5 {[%clk 0:37:08]}  Ne5 {[%clk 0:38:23]}
19. Qf2 {[%clk 0:31:03]}  Nac4 {[%clk 0:34:57]} 20. Bxc4 {[%clk 0:22:18]}  Qxc4 {[%clk 0:35:03]} 21. fxg6 {[%clk 0:22:12]}  fxg6 {[%clk 0:32:56]}
22. Qf6 {[%clk 0:21:13]}  Rh7 {[%clk 0:32:32]} 23. Nb3 {[%clk 0:09:51]}  Be7 {[%clk 0:24:41]} 24. Qf2 {[%clk 0:07:59]}  Rf7 {[%clk 0:23:52]}
25. Qg3 {[%clk 0:07:56]}  Rf3 {[%clk 0:08:47]} 26. Qe1 {[%clk 0:08:25]}  Qc7 {[%clk 0:07:53]} 27. Nd5 {[%clk 0:08:17]}  Bxd5 {[%clk 0:08:05]}
28. Rxd5 {[%clk 0:08:45]}  Rc8 {[%clk 0:08:08]} 29. c3 {[%clk 0:07:44]}  Qc4 {[%clk 0:07:54]} 30. Rxe5 {[%clk 0:06:37]}  dxe5 {[%clk 0:08:02]}
31. Nd2 {[%clk 0:07:02]}  Rxe3 {[%clk 0:02:57]} 32. Qxe3 {[%clk 0:07:29]}  Qe6 {[%clk 0:02:49]} 33. Rh1 {[%clk 0:06:52]}  Kf7 {[%clk 0:02:07]}
34. Ne4 {[%clk 0:03:40]}  Kg7 {[%clk 0:02:06]} 35. a3 {[%clk 0:01:49]}  Qf5 {[%clk 0:01:44]} 36. Re1 {[%clk 0:01:39]}  Rc4 {[%clk 0:01:42]}
37. Kc2 {[%clk 0:00:56]}  a5 {[%clk 0:01:04]} 38. Kb3 {[%clk 0:01:08]}  b5 {[%clk 0:01:11]} 39. Ka2 {[%clk 0:01:13]}  b4 {[%clk 0:00:54]}
40. cxb4 {[%clk 0:01:22]}  axb4 {[%clk 0:01:20]} 41. axb4 {[%clk 0:01:00]}  Rxb4 {[%clk 0:01:20]} 42. Qa7 {[%clk 0:26:35]}  Qf7+ {[%clk 0:23:13]}
43. Kb1 {[%clk 0:26:04]}  Rd4 {[%clk 0:21:41]} 44. Qc7 {[%clk 0:25:03]}  Rd5 {[%clk 0:19:25]} 45. Rh1 {[%clk 0:23:58]}  Qe6 {[%clk 0:07:51]}
46. Nf6 {[%clk 0:21:01]}  Rd4 {[%clk 0:04:14]} 47. Rh7+ {[%clk 0:17:52]}  Kf8 {[%clk 0:04:43]} 48. Qb8+ {[%clk 0:17:53]}  Bd8 {[%clk 0:04:55]}
49. Rh8+ {[%clk 0:15:24]}  Kg7 {[%clk 0:05:13]} 50. Qb7+ {[%clk 0:13:50]}  Be7 {[%clk 0:05:05]} 51. Rh7+ {[%clk 0:14:19]}  Kf8 {[%clk 0:05:25]}
52. Qa8+ {[%clk 0:14:48]}  Bd8 {[%clk 0:05:32]} 53. Rh8+ {[%clk 0:15:05]}  Kg7 {[%clk 0:05:45]} 54. Rxd8 {[%clk 0:15:10]}  Qf5+ {[%clk 0:04:54]}
55. Ka2 {[%clk 0:15:31]}  Rxd8 {[%clk 0:04:53]} 56. Qxd8 {[%clk 0:15:56]}  Qxg5 {[%clk 0:05:06]} 57. Qe7+ {[%clk 0:15:59]} 1-0

[Event "2026 European Womens Championship"]
[Site "Batumi, GE"]
[Date "2026.05.27"]
[Round "3"]
[White "Matnadze Bujiashvili, Ann"]
[Black "Tashkinova, Sofiia"]
[Result "1-0"]
[Board "43"]
[TimeControl "5400+30"]
[WhiteFideId "13601377"]
[BlackFideId "14188309"]
[WhiteElo "2310"]
[BlackElo "2085"]
[WhiteTitle "IM"]
[BlackTitle "WFM"]
[WhiteClock "0:25:41"]
[BlackClock "0:57:42"]
[Variant "Standard"]

1. d4 {[%clk 1:30:57]}  Nf6 {[%clk 1:30:53]} 2. Nf3 {[%clk 1:31:18]}  b5 {[%clk 1:31:09]} 3. a4 {[%clk 1:31:27]}  b4 {[%clk 1:31:02]}
4. c4 {[%clk 1:31:48]}  e6 {[%clk 1:25:43]} 5. a5 {[%clk 1:29:55]}  a6 {[%clk 1:25:19]} 6. g3 {[%clk 1:24:52]}  Bb7 {[%clk 1:25:20]}
7. Bg2 {[%clk 1:25:17]}  c5 {[%clk 1:25:11]} 8. d5 {[%clk 1:17:36]}  exd5 {[%clk 1:21:09]} 9. Nh4 {[%clk 1:18:00]}  Nc6 {[%clk 1:20:30]}
10. cxd5 {[%clk 1:17:55]}  Nxa5 {[%clk 1:15:46]} 11. Nd2 {[%clk 1:07:18]}  c4 {[%clk 1:06:20]} 12. Qa4 {[%clk 1:06:55]}  Nb3 {[%clk 1:06:33]}
13. Nxb3 {[%clk 1:06:50]}  cxb3 {[%clk 1:06:56]} 14. Qxb3 {[%clk 1:07:00]}  Bc5 {[%clk 1:05:21]} 15. Be3 {[%clk 0:57:11]}  Qb6 {[%clk 1:04:55]}
16. Nf5 {[%clk 0:56:20]}  O-O {[%clk 1:03:31]} 17. O-O {[%clk 0:52:15]}  g6 {[%clk 1:00:13]} 18. Bxc5 {[%clk 0:40:22]}  Qxc5 {[%clk 1:00:36]}
19. Rfc1 {[%clk 0:40:38]}  Qb6 {[%clk 0:59:50]} 20. Qe3 {[%clk 0:36:32]}  Qxe3 {[%clk 0:58:10]} 21. Nxe3 {[%clk 0:37:01]}  Rfc8 {[%clk 0:56:04]}
22. Rc2 {[%clk 0:18:07]}  Kf8 {[%clk 0:51:21]} 23. h3 {[%clk 0:10:21]}  Ne8 {[%clk 0:45:22]} 24. Rxc8 {[%clk 0:07:50]}  Bxc8 {[%clk 0:41:41]}
25. Ra4 {[%clk 0:04:43]}  Rb8 {[%clk 0:41:45]} 26. Nc2 {[%clk 0:03:39]}  b3 {[%clk 0:41:50]} 27. Nd4 {[%clk 0:03:56]}  Nd6 {[%clk 0:41:56]}
28. e4 {[%clk 0:03:47]}  f6 {[%clk 0:41:14]} 29. f3 {[%clk 0:03:47]}  Rb6 {[%clk 0:38:46]} 30. Bf1 {[%clk 0:03:45]}  Bb7 {[%clk 0:38:31]}
31. Kf2 {[%clk 0:03:22]}  f5 {[%clk 0:34:47]} 32. Ke3 {[%clk 0:03:45]}  fxe4 {[%clk 0:34:04]} 33. fxe4 {[%clk 0:04:13]}  Nf7 {[%clk 0:32:22]}
34. Ra3 {[%clk 0:04:29]}  d6 {[%clk 0:29:25]} 35. Rxb3 {[%clk 0:04:47]}  Rxb3+ {[%clk 0:29:46]} 36. Nxb3 {[%clk 0:05:16]}  Bc8 {[%clk 0:30:05]}
37. Nd4 {[%clk 0:03:05]}  Ne5 {[%clk 0:29:42]} 38. b4 {[%clk 0:02:46]}  Kf7 {[%clk 0:28:19]} 39. Kd2 {[%clk 0:02:32]}  h5 {[%clk 0:28:10]}
40. Ke3 {[%clk 0:01:51]}  Kf6 {[%clk 0:28:15]} 41. h4 {[%clk 0:27:46]}  g5 {[%clk 0:56:02]} 42. hxg5+ {[%clk 0:23:28]}  Kxg5 {[%clk 0:55:51]}
43. Nf3+ {[%clk 0:23:42]}  Nxf3 {[%clk 0:55:31]} 44. Kxf3 {[%clk 0:24:10]}  Bg4+ {[%clk 0:55:51]} 45. Ke3 {[%clk 0:24:28]}  Bc8 {[%clk 0:56:16]}
46. Be2 {[%clk 0:24:13]}  Bb7 {[%clk 0:56:24]} 47. Kd4 {[%clk 0:24:25]}  h4 {[%clk 0:55:46]} 48. gxh4+ {[%clk 0:24:40]}  Kxh4 {[%clk 0:56:09]}
49. e5 {[%clk 0:24:53]}  Kg5 {[%clk 0:56:25]} 50. exd6 {[%clk 0:25:10]}  Kf6 {[%clk 0:56:41]} 51. Bg4 {[%clk 0:25:13]}  Kf7 {[%clk 0:56:56]}
52. Bd7 {[%clk 0:25:10]}  Kf8 {[%clk 0:57:18]} 53. Bc6 {[%clk 0:25:16]}  Bc8 {[%clk 0:57:42]} 54. d7 {[%clk 0:25:41]} 1-0